fUST/lending_fUST_20240126
["ID","MTS","AMOUNT","RATE_DAILY","PERIOD"]
[312758824,1706199041545,-157.894736,0.00041096,2]
[312758825,1706199041555,-169.98939872,0.000411,14]
[312758826,1706199041564,-169.98,0.000411,14]
[312758827,1706199041574,-151.10168775,0.000411,14]
[312758828,1706199041584,-151.10168775,0.000411,14]
[312758829,1706199041593,-151.10168775,0.000411,14]
[312758830,1706199041603,-151.10168775,0.000411,14]
[312758831,1706199041613,-151.10168775,0.00041323,14]
[312758832,1706199041622,-620.00165242,0.00041368,15]
[312758833,1706199041631,-620.00183266,0.00041674,15]
[312758834,1706199041641,-402.405187,0.00041879,2]
[312758835,1706199041650,-50000.0,0.00042012,15]
[312758836,1706199041661,-5000.0,0.00042095,15]
[312758837,1706199041672,-200.37141193,0.00042121,3]
[312758838,1706199041681,-151.10168775,0.00042331,14]
[312758839,1706199041690,-155.0,0.00042332,2]
[312758840,1706199041701,-1751.98385727,0.0004275,5]
[312758841,1706199041711,-402.405187,0.00042857,2]
[312758842,1706199041722,-165.0,0.00043,90]
[312758843,1706199041732,-24666.64736133,0.00043,2]
[312758864,1706199043225,-3825.03898195,0.00043,2]
[312758866,1706199043237,-4542.5,0.00043,2]
[312758868,1706199043284,-1027.09871679,0.00043,2]
[312758869,1706199043296,-410.2764319,0.00043,2]
[312759239,1706200238391,-850.73963902,0.00022749,2]
[312759240,1706200238400,-154.98450155,0.00022749,4]
[312759241,1706200238410,-679.03304923,0.0002275,2]
[312759242,1706200238419,-1198.61763963,0.00022751,2]
[312759243,1706200238427,-2094.24650055,0.00022752,2]
[312759244,1706200238448,-1876.08455643,0.00022752,2]
[312759245,1706200238457,-426.19756797,0.00022752,2]
[312759246,1706200238466,-1583.23422085,0.00022753,2]
[312759247,1706200238474,-166.666666,0.00022761,2]
[312759248,1706200238483,-1416.02167727,0.00023,2]
[312759249,1706200238492,-168.917191,0.00023126,2]
[312759250,1706200238501,-166.666666,0.00023381,2]
[312759251,1706200238510,-166.666666,0.00024002,2]
[312759252,1706200238519,-24900.0,0.00024158,2]
[312759253,1706200238528,-167.46253708,0.00024522,2]
[312759254,1706200238537,-166.666666,0.00024622,2]
[312759255,1706200238546,-212.2386522,0.00024658,2]
[312759256,1706200238555,-4725.91421399,0.00025,2]
[312759257,1706200238564,-7385.90525508,0.00025,2]
[312759258,1706200238573,-154.98450155,0.00025242,2]
[312759259,1706200238581,-166.666666,0.00025243,2]
[312759260,1706200238590,-200.0,0.00025434,7]
[312759261,1706200238599,-166.666666,0.00025864,2]
[312759262,1706200238609,-274.65114385,0.00025954,2]
[312759263,1706200238618,-290.53836744,0.00027,2]
[312759264,1706200238629,-166.470372,0.0002786,2]
[312759265,1706200238639,-280.0,0.00027978,15]
[312759266,1706200238648,-167.71599843,0.00028597,2]
[312759267,1706200238657,-16932.22,0.00028678,3]
[312759268,1706200238665,-14110.18,0.00028678,3]
[312759270,1706200238675,-311.91244819,0.00028686,2]
[312759271,1706200238683,-309.31860756,0.00028686,2]
[312759273,1706200238693,-20318.66,0.00028688,3]
[312759274,1706200238701,-470.87385711,0.00028696,2]
[312759275,1706200238710,-154.98450155,0.00028696,2]
[312759277,1706200238720,-4011.78855735,0.00028696,2]
[312759279,1706200238729,-8653.83689169,0.00028697,2]
[312759281,1706200238738,-170.03961878,0.00028697,2]
[312759283,1706200238747,-571.33828928,0.00028697,2]
[312759285,1706200238756,-500.0,0.00028697,2]
[312759287,1706200238765,-350.0,0.00028697,2]
[312759289,1706200238774,-512.38921039,0.00028697,2]
[312759291,1706200238783,-500.0,0.00028697,2]
[312759293,1706200238792,-377.65972868,0.00028697,2]
[312759295,1706200238801,-500.0,0.00028697,2]
[312759297,1706200238810,-500.0,0.00028697,2]
[312759299,1706200238819,-500.0,0.00028697,2]
[312759301,1706200238828,-165.75185927,0.00028697,2]
[312759303,1706200238837,-276000.0,0.00028698,2]
[312759305,1706200238846,-2074.94658461,0.00028838,2]
[312759307,1706200238855,-309.36261394,0.00029,2]
[312759309,1706200238864,-1932.44477539,0.00029,2]
[312759311,1706200238873,-153.0,0.00029178,2]
[312759313,1706200238883,-153.0,0.00029178,2]
[312759315,1706200238892,-153.0,0.00029178,2]
[312759317,1706200238901,-153.0,0.00029178,2]
[312759319,1706200238911,-153.0,0.00029178,2]
[312759321,1706200238921,-153.0,0.00029178,2]
[312759323,1706200238932,-153.0,0.00029178,2]
[312759325,1706200238941,-157.3764171,0.00029315,2]
[312759327,1706200238951,-159.3657322,0.00029315,2]
[312759329,1706200238960,-199.3339408,0.00029315,2]
[312759331,1706200238970,-262.3960285,0.00029315,2]
[312759333,1706200238979,-153.0,0.00029315,2]
[312759335,1706200238988,-153.0,0.00029315,2]
[312759337,1706200238998,-171.7059798,0.00029315,2]
[312759339,1706200239007,-250.5513808,0.00029315,2]
[312759341,1706200239015,-153.0,0.00029315,2]
[312759343,1706200239024,-153.0,0.00029315,2]
[312759345,1706200239036,-153.0,0.00029315,2]
[312759347,1706200239048,-199.3339408,0.00029315,2]
[312759349,1706200239057,-153.0,0.00029315,2]
[312759350,1706200239067,-153.0,0.00029315,2]
[312759352,1706200239078,-153.0,0.00029315,2]
[312759354,1706200239088,-153.0,0.00029315,2]
[312759357,1706200239098,-153.0,0.00029315,2]
[312759359,1706200239108,-153.0,0.00029315,2]
[312759361,1706200239118,-199.3339408,0.00029315,2]
[312759363,1706200239127,-153.0,0.00029315,2]
[312759364,1706200239136,-153.0,0.00029315,2]
[312759366,1706200239145,-199.3339408,0.00029315,2]
[312759369,1706200239155,-153.0,0.00029315,2]
[312759370,1706200239165,-153.0,0.00029315,2]
[312759372,1706200239176,-153.0,0.00029315,2]
[312759374,1706200239185,-153.0,0.00029315,2]
[312759376,1706200239195,-153.0,0.00029315,2]
[312759378,1706200239204,-153.0,0.00029315,2]
[312759380,1706200239213,-153.0,0.00029315,2]
[312759390,1706200239296,-153.0,0.00029315,2]
[312759392,1706200239306,-199.3339408,0.00029315,2]
[312759394,1706200239317,-153.0,0.00029315,2]
[312759397,1706200239327,-153.0,0.00029315,2]
[312759399,1706200239337,-153.0,0.00029315,2]
[312759401,1706200239346,-199.3339408,0.00029315,2]
[312759403,1706200239355,-153.0,0.00029315,2]
[312759404,1706200239365,-153.0,0.00029315,2]
[312759406,1706200239375,-153.0,0.00029315,2]
[312759408,1706200239385,-153.0,0.00029315,2]
[312759411,1706200239394,-199.3339408,0.00029315,2]
[312759413,1706200239404,-153.0,0.00029315,2]
[312759414,1706200239414,-153.0,0.00029315,2]
[312759416,1706200239423,-153.0,0.00029589,2]
[312759419,1706200239433,-291.31420188,0.0003,3]
[312759421,1706200239443,-244.31917233,0.0003,4]
[312759423,1706200239452,-1000.0,0.0003,4]
[312759425,1706200239461,-139264.62830083,0.0003,4]
[312759426,1706200239471,-2372.54255137,0.0003,2]
[312759428,1706200239482,-688.78830185,0.0003,4]
[312759431,1706200239493,-195.4790082,0.0003,2]
[312759433,1706200239505,-154.98450155,0.0003,4]
[312759434,1706200239514,-797.64547305,0.0003,4]
[312759436,1706200239523,-155.74648817,0.0003,4]
[312759439,1706200239533,-186.0,0.0003,2]
[312759441,1706200239542,-153.0,0.00030137,2]
[312759443,1706200239551,-153.0,0.00030137,2]
[312759444,1706200239561,-153.0,0.00030137,2]
[312759446,1706200239571,-153.0,0.00030137,2]
[312759449,1706200239581,-153.0,0.00030137,2]
[312759451,1706200239590,-153.0,0.00030137,2]
[312759453,1706200239600,-153.0,0.00030137,2]
[312759455,1706200239610,-153.0,0.00030137,2]
[312759457,1706200239619,-153.0,0.00030137,2]
[312759459,1706200239628,-153.0,0.00030137,2]
[312759461,1706200239637,-153.0,0.00030137,2]
[312759463,1706200239646,-153.0,0.00030137,2]
[312759465,1706200239656,-153.0,0.00030137,2]
[312759467,1706200239665,-383.3948546,0.00030137,2]
[312759469,1706200239674,-153.0,0.00030137,2]
[312759471,1706200239684,-153.0,0.00030137,2]
[312759473,1706200239692,-199.3339408,0.00030137,2]
[312759474,1706200239701,-199.3339408,0.00030137,2]
[312759476,1706200239710,-199.3339408,0.00030137,2]
[312759479,1706200239720,-199.3339408,0.00030137,2]
[312759480,1706200239729,-199.3339408,0.00030137,2]
[312759482,1706200239738,-199.3339408,0.00030137,2]
[312759484,1706200239747,-199.3339408,0.00030137,2]
[312759486,1706200239756,-197.1611554,0.00030137,2]
[312759488,1706200239765,-295.097138,0.00030137,2]
[312759490,1706200239774,-157.894736,0.00030137,2]
[312759492,1706200239784,-10039.22607265,0.00030246,2]
[312759494,1706200239793,-204.39724027,0.00030246,2]
[312759496,1706200239802,-554.95214132,0.00030246,2]
[312759498,1706200239812,-157.894736,0.00030746,2]
[312759500,1706200239821,-391.0,0.00030775,15]
[312759502,1706200239830,-326.58097042,0.00031,7]
[312759504,1706200239839,-295.097138,0.00031115,2]
[312759506,1706200239848,-157.894736,0.00031355,2]
[312759508,1706200239857,-167.46253703,0.0003186,5]
[312759510,1706200239866,-157.894736,0.00031963,2]
[312759512,1706200239875,-295.097138,0.00032094,2]
[312759514,1706200239884,-157.894736,0.00032572,2]
[312759516,1706200239893,-20078.9928924,0.00032877,2]
[312759518,1706200239902,-154.98450155,0.00033,4]
[312759520,1706200239912,-276.02916029,0.00033,2]
[312759522,1706200239922,-295.097138,0.00033072,2]
[312759524,1706200239931,-157.894736,0.00033181,2]
[312759526,1706200239940,-157.894736,0.0003379,2]
[312759528,1706200239949,-50000.0,0.00033813,3]
[312759530,1706200239958,-50000.0,0.00033813,3]
[312759532,1706200239967,-50000.0,0.00033813,3]
[312759534,1706200239977,-50000.0,0.00033813,3]
[312759536,1706200239985,-50000.0,0.00033813,3]
[312759538,1706200239995,-50000.0,0.00033813,3]
[312759540,1706200240004,-50000.0,0.00033813,3]
[312759542,1706200240013,-87936.8872818,0.00033813,3]
[312759544,1706200240022,-14105.06415934,0.00033813,2]
[312759546,1706200240033,-200.0,0.00033853,15]
[312759548,1706200240044,-348.0,0.00033853,15]
[312759550,1706200240053,-295.097138,0.00034051,2]
[312759552,1706200240063,-246.5520124,0.00034247,2]
[312759554,1706200240073,-157.894736,0.00034399,2]
[312759556,1706200240082,-592.34900571,0.00035,2]
[312759558,1706200240091,-2359.3181247,0.00035,2]
[312759560,1706200240101,-154.98450155,0.00035,2]
[312759562,1706200240112,-657.40715545,0.00035,7]
[312759564,1706200240121,-184.66976843,0.00035,2]
[312759566,1706200240131,-564.16006176,0.00035,2]
[312759568,1706200240140,-157.894736,0.00035008,2]
[312759570,1706200240149,-295.097138,0.00035029,2]
[312759572,1706200240158,-200.0,0.000353,4]
[312759574,1706200240168,-1057.78,0.00035616,2]
[312759576,1706200240178,-1057.78,0.00035616,2]
[312759578,1706200240187,-1057.78,0.00035616,2]
[312759580,1706200240197,-1057.78,0.00035616,2]
[312759582,1706200240207,-1057.78,0.00035616,2]
[312759584,1706200240216,-1057.78,0.00035616,2]
[312759586,1706200240226,-1057.78,0.00035616,2]
[312759588,1706200240235,-1057.78,0.00035616,2]
[312759590,1706200240244,-1057.78,0.00035616,2]
[312759591,1706200240253,-1057.78,0.00035616,2]
[312759592,1706200240262,-1057.78,0.00035616,2]
[312759593,1706200240271,-1057.78,0.00035616,2]
[312759594,1706200240280,-1057.78,0.00035616,2]
[312759595,1706200240289,-1057.78,0.00035616,2]
[312759596,1706200240298,-1057.78,0.00035616,2]
[312759597,1706200240307,-1057.78,0.00035616,2]
[312759598,1706200240316,-1057.78,0.00035616,2]
[312759599,1706200240325,-1057.78,0.00035616,2]
[312759600,1706200240334,-1057.78,0.00035616,2]
[312759601,1706200240342,-1057.78,0.00035616,2]
[312759602,1706200240351,-1057.78,0.00035616,2]
[312759603,1706200240360,-1057.78,0.00035616,2]
[312759604,1706200240369,-1057.78,0.00035616,2]
[312759605,1706200240378,-1057.98927273,0.00035616,2]
[312759606,1706200240387,-157.894736,0.00035616,2]
[312759607,1706200240396,-647.8111,0.00035966,2]
[312759608,1706200240406,-154.98450155,0.00036,4]
[312759609,1706200240415,-295.097138,0.00036008,2]
[312759610,1706200240426,-157.894736,0.00036225,2]
[312759611,1706200240435,-154.98450155,0.0003655,7]
[312759612,1706200240444,-157.894736,0.00036834,2]
[312759613,1706200240453,-295.097138,0.00036986,2]
[312759614,1706200240461,-6281.20623441,0.00037223,7]
[312759615,1706200240471,-200.0,0.00037238,15]
[312759616,1706200240480,-200.0,0.00037238,15]
[312759617,1706200240489,-368.0,0.00037238,15]
[312759618,1706200240498,-157.894736,0.00037443,2]
[312759619,1706200240507,-8392.09761733,0.00037567,2]
[312759620,1706200240516,-621.390555,0.00037764,2]
[312759621,1706200240525,-295.097138,0.00037965,2]
[312759622,1706200240535,-157.894736,0.00038052,2]
[312759623,1706200240544,-2147.50028627,0.000385,4]
[312759624,1706200240553,-157.894736,0.0003866,2]
[312759625,1706200240563,-5000.0,0.00038759,7]
[312759626,1706200240572,-233.62993,0.000388,2]
[312759627,1706200240581,-295.097138,0.00038943,2]
[312759628,1706200240591,-576.0,0.000391,2]
[312759630,1706200240600,-167.46253703,0.00039198,9]
[312759632,1706200240609,-157.894736,0.00039269,2]
[312759633,1706200240618,-500.0,0.00039356,15]
[312759635,1706200240627,-554.51466592,0.00039356,15]
[312759637,1706200240636,-500.0,0.00039356,15]
[312759639,1706200240645,-500.0,0.00039356,15]
[312759640,1706200240654,-500.0,0.00039356,15]
[312759641,1706200240663,-500.0,0.00039356,15]
[312759642,1706200240674,-500.0,0.00039356,15]
[312759644,1706200240683,-500.0,0.00039356,15]
[312759646,1706200240692,-500.0,0.00039356,15]
[312759647,1706200240702,-500.0,0.00039356,15]
[312759649,1706200240711,-500.0,0.00039356,15]
[312759651,1706200240785,-500.0,0.00039356,15]
[312759652,1706200240795,-500.0,0.00039356,15]
[312759653,1706200240804,-500.0,0.00039356,15]
[312759654,1706200240813,-500.0,0.00039356,15]
[312759655,1706200240823,-521.90227233,0.00039356,15]
[312759656,1706200240832,-170.59411888,0.00039356,15]
[312759657,1706200240843,-500.0,0.00039356,15]
[312759658,1706200240852,-500.0,0.00039356,15]
[312759659,1706200240861,-500.0,0.00039356,15]
[312759660,1706200240870,-500.0,0.00039356,15]
[312759661,1706200240879,-651.83922557,0.00039356,15]
[312759662,1706200240888,-427.39032001,0.00039356,15]
[312759663,1706200240898,-500.0,0.00039356,15]
[312759664,1706200240907,-500.0,0.00039356,15]
[312759665,1706200240917,-500.0,0.00039356,15]
[312759666,1706200240926,-500.0,0.00039356,15]
[312759667,1706200240935,-500.0,0.00039356,15]
[312759668,1706200240945,-500.0,0.00039356,15]
[312759669,1706200240954,-500.0,0.00039356,15]
[312759670,1706200240963,-500.0,0.00039356,15]
[312759671,1706200240972,-500.0,0.00039356,15]
[312759672,1706200240982,-500.0,0.00039356,15]
[312759673,1706200240991,-500.0,0.00039356,15]
[312759674,1706200241001,-500.0,0.00039356,15]
[312759675,1706200241010,-500.0,0.00039356,15]
[312759676,1706200241019,-500.0,0.00039356,15]
[312759677,1706200241030,-500.0,0.00039356,15]
[312759678,1706200241042,-324.54867869,0.00039356,15]
[312759679,1706200241053,-500.0,0.00039356,15]
[312759680,1706200241063,-500.0,0.00039356,15]
[312759681,1706200241073,-500.0,0.00039356,15]
[312759682,1706200241084,-500.0,0.00039356,15]
[312759683,1706200241094,-500.0,0.00039356,15]
[312759684,1706200241103,-500.0,0.00039356,15]
[312759685,1706200241116,-500.0,0.00039356,15]
[312759686,1706200241126,-500.0,0.00039356,15]
[312759687,1706200241135,-500.0,0.00039356,15]
[312759688,1706200241145,-500.0,0.00039356,15]
[312759689,1706200241155,-500.0,0.00039356,15]
[312759690,1706200241166,-500.0,0.00039356,15]
[312759691,1706200241175,-500.0,0.00039356,15]
[312759692,1706200241185,-500.0,0.00039356,15]
[312759693,1706200241194,-500.0,0.00039356,15]
[312759694,1706200241203,-500.0,0.00039356,15]
[312759695,1706200241213,-500.0,0.00039356,15]
[312759696,1706200241222,-632.13552078,0.00039356,15]
[312759697,1706200241231,-500.0,0.00039356,15]
[312759698,1706200241240,-500.0,0.00039356,15]
[312759699,1706200241250,-500.0,0.00039356,15]
[312759700,1706200241259,-500.0,0.00039356,15]
[312759701,1706200241268,-500.0,0.00039356,15]
[312759703,1706200241277,-500.0,0.00039356,15]
[312759705,1706200241288,-500.0,0.00039356,15]
[312759707,1706200241296,-500.0,0.00039356,15]
[312759709,1706200241305,-500.0,0.00039356,15]
[312759711,1706200241314,-409.32301523,0.00039356,15]
[312759713,1706200241324,-500.0,0.00039356,15]
[312759715,1706200241334,-500.0,0.00039356,15]
[312759717,1706200241344,-13179.58085663,0.00039358,7]
[312759719,1706200241359,-2542.30151515,0.00039358,7]
[312759721,1706200241371,-1138.492502,0.00039358,7]
[312767774,1706201439403,-155.0,0.00023355,4]
[312767775,1706201439415,-1198.61763963,0.00023356,2]
[312767776,1706201439427,-1583.23422085,0.00023356,2]
[312767777,1706201439436,-24900.0,0.00023357,2]
[312767778,1706201439445,-679.03304923,0.00023617,2]
[312767779,1706201439455,-850.73963902,0.00023618,2]
[312767780,1706201439464,-426.19756797,0.00023619,2]
[312767781,1706201439473,-3970.33105698,0.0002362,2]
[312767782,1706201439482,-166.666666,0.00023635,2]
[312767784,1706201439493,-166.666666,0.0002428,2]
[312767785,1706201439503,-312.2386522,0.00024658,2]
[312767786,1706201439513,-166.666666,0.00024924,2]
[312767787,1706201439522,-166.470372,0.00024942,2]
[312767789,1706201439531,-155.0,0.00025177,2]
[312767790,1706201439540,-7385.90525508,0.00025178,2]
[312767792,1706201439549,-4725.91421399,0.00025178,2]
[312767794,1706201439558,-166.666666,0.00025568,2]
[312767795,1706201439567,-274.65114385,0.00025735,2]
[312767797,1706201439577,-200.0,0.00025992,7]
[312767799,1706201439586,-166.666666,0.00026213,2]
[312767801,1706201439595,-166.4703768,0.00026468,2]
[312767803,1706201439604,-166.666666,0.00026857,2]
[312767805,1706201439613,-290.53836744,0.00027,2]
[312767807,1706201439622,-153.0,0.00028219,2]
[312767809,1706201439632,-153.0,0.00028493,2]
[312767811,1706201439642,-199.3339408,0.00028493,2]
[312767813,1706201439651,-153.0,0.00028493,2]
[312767815,1706201439659,-167.71599843,0.00028496,2]
[312767817,1706201439668,-17643.87,0.00028576,3]
[312767819,1706201439678,-21172.65,0.00028586,3]
[312767821,1706201439687,-11102.98,0.00028587,3]
[312767823,1706201439696,-280.0,0.00028592,15]
[312767825,1706201439705,-470.87385711,0.00028596,2]
[312767827,1706201439714,-2074.94658461,0.00028596,2]
[312767829,1706201439723,-154.98450155,0.00028596,2]
[312767831,1706201439732,-8653.83689169,0.00028596,2]
[312767833,1706201439741,-4011.78855735,0.00028596,2]
[312767835,1706201439750,-311.91244819,0.00028596,2]
[312767837,1706201439758,-309.31860756,0.00028597,2]
[312767839,1706201439767,-500.0,0.00028597,2]
[312767841,1706201439776,-170.03961878,0.00028597,2]
[312767844,1706201439791,-500.0,0.00028597,2]
[312767846,1706201439806,-350.0,0.00028597,2]
[312767848,1706201439815,-500.0,0.00028597,2]
[312767850,1706201439824,-512.38921039,0.00028597,2]
[312767852,1706201439835,-500.0,0.00028597,2]
[312767854,1706201439844,-571.33828928,0.00028597,2]
[312767857,1706201439854,-165.75185927,0.00028597,2]
[312767859,1706201439863,-500.0,0.00028597,2]
[312767861,1706201439874,-377.65972868,0.00028597,2]
[312767862,1706201439884,-276000.0,0.00028598,2]
[312767863,1706201439894,-157.84343966,0.00029,2]
[312767864,1706201439904,-1932.44477539,0.00029,2]
[312767865,1706201439913,-153.0,0.00029178,2]
[312767866,1706201439923,-153.0,0.00029178,2]
[312767867,1706201439934,-153.0,0.00029178,2]
[312767868,1706201439943,-153.0,0.00029178,2]
[312767869,1706201439953,-153.0,0.00029178,2]
[312767870,1706201439963,-306.0,0.00029178,2]
[312767871,1706201439972,-250.5513808,0.00029315,2]
[312767872,1706201439983,-153.0,0.00029315,2]
[312767873,1706201439993,-153.0,0.00029315,2]
[312767874,1706201440002,-153.0,0.00029315,2]
[312767875,1706201440012,-262.3960285,0.00029315,2]
[312767876,1706201440022,-159.3657322,0.00029315,2]
[312767877,1706201440031,-199.2396578,0.00029315,2]
[312767878,1706201440042,-171.7059798,0.00029315,2]
[312767879,1706201440051,-153.0,0.00029315,2]
[312767880,1706201440060,-153.0,0.00029315,2]
[312767881,1706201440070,-153.0,0.00029315,2]
[312767882,1706201440079,-199.3339408,0.00029315,2]
[312767883,1706201440089,-153.0,0.00029315,2]
[312767884,1706201440098,-153.0,0.00029315,2]
[312767885,1706201440107,-153.0,0.00029315,2]
[312767886,1706201440117,-153.0,0.00029315,2]
[312767887,1706201440126,-153.0,0.00029315,2]
[312767888,1706201440136,-153.0,0.00029315,2]
[312767889,1706201440145,-199.3339408,0.00029315,2]
[312767890,1706201440155,-153.0,0.00029315,2]
[312767891,1706201440165,-153.0,0.00029315,2]
[312767892,1706201440176,-153.0,0.00029315,2]
[312767893,1706201440186,-153.0,0.00029315,2]
[312767894,1706201440196,-153.0,0.00029315,2]
[312767895,1706201440206,-153.0,0.00029315,2]
[312767896,1706201440216,-199.3339408,0.00029315,2]
[312767897,1706201440228,-153.0,0.00029315,2]
[312767898,1706201440238,-153.0,0.00029315,2]
[312767899,1706201440247,-153.0,0.00029315,2]
[312767900,1706201440256,-199.3339408,0.00029315,2]
[312767901,1706201440266,-153.0,0.00029315,2]
[312767902,1706201440276,-153.0,0.00029315,2]
[312767903,1706201440286,-153.0,0.00029315,2]
[312767904,1706201440295,-153.0,0.00029315,2]
[312767905,1706201440305,-199.3339408,0.00029315,2]
[312767906,1706201440316,-153.0,0.00029315,2]
[312767907,1706201440325,-153.0,0.00029315,2]
[312767908,1706201440335,-153.0,0.00029315,2]
[312767909,1706201440345,-199.3339408,0.00029315,2]
[312767910,1706201440354,-153.0,0.00029315,2]
[312767911,1706201440364,-153.0,0.00029315,2]
[312767912,1706201440373,-153.0,0.00029315,2]
[312767913,1706201440383,-153.0,0.00029589,2]
[312767914,1706201440392,-291.31420188,0.0003,3]
[312767915,1706201440402,-195.4790082,0.0003,2]
[312767916,1706201440412,-688.78830185,0.0003,4]
[312767917,1706201440424,-139264.62830083,0.0003,4]
[312767918,1706201440434,-2372.54255137,0.0003,2]
[312767919,1706201440443,-244.31917233,0.0003,4]
[312767920,1706201440452,-1000.0,0.0003,4]
[312767921,1706201440465,-155.74648817,0.0003,4]
[312767922,1706201440476,-797.64547305,0.0003,4]
[312767923,1706201440485,-154.98450155,0.0003,4]
[312767924,1706201440496,-269.0,0.0003,2]
[312767925,1706201440506,-153.0,0.00030137,2]
[312767926,1706201440517,-153.0,0.00030137,2]
[312767927,1706201440527,-153.0,0.00030137,2]
[312767928,1706201440537,-153.0,0.00030137,2]
[312767929,1706201440549,-153.0,0.00030137,2]
[312767930,1706201440559,-153.0,0.00030137,2]
[312767931,1706201440569,-153.0,0.00030137,2]
[312767932,1706201440579,-153.0,0.00030137,2]
[312767933,1706201440590,-153.0,0.00030137,2]
[312767934,1706201440601,-153.0,0.00030137,2]
[312767935,1706201440612,-153.0,0.00030137,2]
[312767936,1706201440622,-153.0,0.00030137,2]
[312767937,1706201440633,-153.0,0.00030137,2]
[312767938,1706201440642,-310.3764171,0.00030137,2]
[312767939,1706201440652,-153.0,0.00030137,2]
[312767940,1706201440662,-153.0,0.00030137,2]
[312767941,1706201440672,-230.3948546,0.00030137,2]
[312767942,1706201440683,-199.3339408,0.00030137,2]
[312767943,1706201440695,-199.3339408,0.00030137,2]
[312767944,1706201440705,-199.3339408,0.00030137,2]
[312767945,1706201440714,-199.3339408,0.00030137,2]
[312767946,1706201440723,-199.3339408,0.00030137,2]
[312767947,1706201440732,-199.3339408,0.00030137,2]
[312767948,1706201440742,-199.3339408,0.00030137,2]
[312767949,1706201440751,-197.1611554,0.00030137,2]
[312767951,1706201440760,-157.894736,0.00030137,2]
[312767953,1706201440770,-305.942503,0.00030137,2]
[312767955,1706201440779,-1406.08412674,0.00030246,2]
[312767957,1706201440788,-7334.63877095,0.00030246,2]
[312767959,1706201440797,-594.51510485,0.00030273,2]
[312767961,1706201440807,-2156.13413679,0.00030355,2]
[312767962,1706201440816,-646.84024103,0.00030355,2]
[312767963,1706201440825,-157.894736,0.00030746,2]
[312767964,1706201440835,-326.58097042,0.00031,7]
[312767965,1706201440844,-305.942503,0.00031115,2]
[312767966,1706201440853,-157.894736,0.00031355,2]
[312767967,1706201440862,-391.0,0.00031451,15]
[312767968,1706201440872,-157.894736,0.00031963,2]
[312767969,1706201440881,-305.942503,0.00032094,2]
[312767970,1706201440891,-157.894736,0.00032572,2]
[312767972,1706201440901,-23174.8410784,0.00032877,2]
[312767975,1706201440910,-154.98450155,0.00033,4]
[312767977,1706201440920,-276.02916029,0.00033,2]
[312767978,1706201440930,-269.0,0.00033,2]
[312767981,1706201440940,-269.0,0.00033,2]
[312767982,1706201440949,-305.942503,0.00033072,2]
[312767985,1706201440959,-157.894736,0.00033181,2]
[312767986,1706201440968,-154.98450155,0.00033454,2]
[312767988,1706201440978,-157.894736,0.0003379,2]
[312767991,1706201440988,-50000.0,0.00033886,3]
[312767992,1706201440997,-50000.0,0.00033886,3]
[312767994,1706201441007,-50000.0,0.00033886,3]
[312767996,1706201441016,-50000.0,0.00033886,3]
[312767999,1706201441026,-50000.0,0.00033886,3]
[312768001,1706201441036,-60239.61848494,0.00033886,3]
[312768003,1706201441047,-19702.14969924,0.00033886,2]
[312768005,1706201441057,-305.942503,0.00034051,2]
[312768007,1706201441067,-246.5520124,0.00034247,2]
[312768009,1706201441076,-157.894736,0.00034399,2]
[312768011,1706201441086,-200.0,0.00034596,15]
[312768013,1706201441095,-348.0,0.00034596,15]
[312768015,1706201441105,-151.0,0.00034707,2]